fUST/lending_fUST_20240710
["ID","MTS","AMOUNT","RATE_DAILY","PERIOD"]
[331648328,1720602643498,-500.0,0.00038468,30]
[331648329,1720602643507,-500.0,0.00038468,30]
[331648330,1720602643516,-425.1617872,0.00038468,30]
[331648331,1720602643526,-7650.53,0.00038468,30]
[331648332,1720602643535,-7650.53,0.00038468,30]
[331648334,1720602643544,-7650.53,0.00038468,30]
[331648335,1720602643553,-7650.53,0.00038468,30]
[331648336,1720602643562,-7650.53,0.00038468,30]
[331648337,1720602643571,-7650.53,0.00038468,30]
[331648338,1720602643580,-7650.53,0.00038468,30]
[331648339,1720602643588,-7650.53,0.00038468,30]
[331648340,1720602643598,-7650.53,0.00038468,30]
[331648341,1720602643607,-7650.53,0.00038468,30]
[331648342,1720602643617,-7650.53,0.00038468,30]
[331648343,1720602643626,-7650.53,0.00038468,30]
[331648344,1720602643635,-7650.53,0.00038468,30]
[331648345,1720602643644,-7650.53,0.00038468,30]
[331648346,1720602643653,-7650.53,0.00038468,30]
[331648347,1720602643664,-7650.53,0.00038468,30]
[331648348,1720602643674,-7650.53,0.00038468,30]
[331648349,1720602643684,-7650.53,0.00038468,30]
[331648350,1720602643694,-7650.53,0.00038468,30]
[331648351,1720602643704,-7650.53,0.00038468,30]
[331648352,1720602643713,-7650.53,0.00038468,30]
[331648353,1720602643723,-7650.53,0.00038468,30]
[331648354,1720602643732,-7650.53,0.00038468,30]
[331648355,1720602643743,-7650.71402602,0.00038468,30]
[331648356,1720602643752,-454.98687183,0.00038468,30]
[331648357,1720602643762,-500.0,0.00038468,30]
[331648358,1720602643771,-500.0,0.00038468,30]
[331648359,1720602643780,-500.0,0.00038468,30]
[331648360,1720602643789,-500.0,0.00038468,30]
[331648361,1720602643798,-500.0,0.00038468,30]
[331648362,1720602643807,-500.0,0.00038468,30]
[331648363,1720602643816,-500.0,0.00038468,30]
[331648364,1720602643825,-500.0,0.00038468,30]
[331648365,1720602643834,-534.0,0.00038468,30]
[331648366,1720602643843,-500.0,0.00038468,30]
[331648367,1720602643852,-500.0,0.00038468,30]
[331648368,1720602643861,-394.95288092,0.00038468,30]
[331648369,1720602643870,-500.0,0.00038468,30]
[331648370,1720602643878,-500.0,0.00038468,30]
[331648371,1720602643888,-500.0,0.00038468,30]
[331648372,1720602643896,-500.0,0.00038468,30]
[331648373,1720602643905,-500.0,0.00038468,30]
[331648374,1720602643914,-500.0,0.00038468,30]
[331648375,1720602644015,-500.0,0.00038468,30]
[331648376,1720602644025,-491.68401136,0.00038468,30]
[331648377,1720602644034,-2036.37001802,0.00038468,120]
[331648378,1720602644043,-500.0,0.00038468,30]
[331648379,1720602644052,-500.0,0.00038468,30]
[331648380,1720602644061,-336.93651057,0.00038468,30]
[331648595,1720603840925,-466.55393181,0.00020996,2]
[331648596,1720603840935,-196.210774,0.00021096,2]
[331648597,1720603840945,-533.576453,0.00021096,2]
[331648598,1720603840954,-1731.8114006,0.00023581,2]
[331648599,1720603840964,-166.666666,0.00023658,2]
[331648600,1720603840976,-300.0,0.00023837,2]
[331648601,1720603840986,-24900.0,0.00023838,2]
[331648602,1720603840995,-162.009859,0.00023976,2]
[331648603,1720603841005,-166.666666,0.00024303,2]
[331648604,1720603841015,-250.0,0.00024419,2]
[331648605,1720603841025,-166.666666,0.00024948,2]
[331648606,1720603841035,-753.76275401,0.00025401,2]
[331648607,1720603841044,-753.76275399,0.00025447,2]
[331648608,1720603841054,-3682.41,0.00025481,3]
[331648609,1720603841063,-3068.68,0.00025481,3]
[331648610,1720603841073,-5302.67,0.00025491,3]
[331648611,1720603841082,-4418.89,0.00025491,3]
[331648612,1720603841093,-63569.6856098,0.00025491,3]
[331648613,1720603841104,-753.76275399,0.00025493,2]
[331648614,1720603841114,-12018.45077229,0.00025501,5]
[331648615,1720603841124,-100080.63805668,0.00025501,2]
[331648616,1720603841134,-166.666666,0.00025593,2]
[331648617,1720603841144,-166.666666,0.00026238,2]
[331648618,1720603841153,-150.0,0.000265,2]
[331648619,1720603841163,-166.666666,0.00026883,2]
[331648620,1720603841172,-63569.6856098,0.00026931,3]
[331648621,1720603841182,-533.576453,0.00027195,2]
[331648622,1720603841200,-647.86576007,0.00027397,2]
[331648623,1720603841213,-500.0,0.00027397,2]
[331648624,1720603841224,-500.0,0.00027397,2]
[331648625,1720603841234,-500.0,0.00027397,2]
[331648626,1720603841243,-503.90846633,0.00028,2]
[331648627,1720603841253,-30000.0,0.00029793,2]
[331648628,1720603841263,-63569.6856098,0.0002989,3]
[331648629,1720603841273,-14618.44003635,0.000299,2]
[331648630,1720603841282,-170.47875529,0.0003,4]
[331648631,1720603841292,-1500.0,0.0003295,4]
[331648632,1720603841302,-533.576453,0.00033295,2]
[331648633,1720603841312,-250.0,0.00034,120]
[331648634,1720603841322,-1757.82046343,0.00034,120]
[331648635,1720603841332,-440.05599607,0.00034442,7]
[331648636,1720603841342,-163.74496817,0.00034442,7]
[331648637,1720603841351,-500.0,0.00034442,7]
[331648638,1720603841361,-500.0,0.00034442,7]
[331648639,1720603841371,-392.94888761,0.00034442,7]
[331648640,1720603841380,-160.00775617,0.00034442,7]
[331648641,1720603841390,-500.0,0.00034442,7]
[331648642,1720603841400,-500.0,0.00034442,7]
[331648643,1720603841409,-500.0,0.00034442,7]
[331648644,1720603841419,-500.0,0.00034442,7]
[331648645,1720603841428,-500.0,0.00034442,7]
[331648646,1720603841439,-500.0,0.00034442,7]
[331648647,1720603841449,-127139.37122,0.00034443,4]
[331648648,1720603841459,-15980.04636651,0.00034453,5]
[331648758,1720603847456,-4973.10419801,0.00034453,5]
[331648861,1720605032840,-524.58484553,0.000176,2]
[331649223,1720605039996,-1458.16867407,0.000176,2]
[331649225,1720605040007,-24830.38801427,0.00018899,2]
[331649227,1720605040017,-185.80680896,0.000191,2]
[331649230,1720605040027,-1260.80582264,0.0001997,2]
[331649232,1720605040037,-300.0,0.00019999,2]
[331649233,1720605040046,-8046.47152351,0.0002,2]
[331649236,1720605040056,-162.0098687,0.0002007,2]
[331649238,1720605040066,-191.04644475,0.00020796,2]
[331649240,1720605040075,-348.92842168,0.00020896,2]
[331649241,1720605040085,-526.518708,0.00021096,2]
[331649243,1720605040095,-166.666666,0.00021918,2]
[331649245,1720605040105,-166.666666,0.00022431,2]
[331649246,1720605040115,-162.033235,0.00022767,2]
[331649247,1720605040125,-753.76275401,0.00022844,2]
[331649248,1720605040134,-20564.4588716,0.00022935,2]
[331649249,1720605040144,-166.666666,0.00022944,2]
[331649250,1720605040154,-6547.81825355,0.00023,2]
[331649251,1720605040164,-166.666666,0.00023456,2]
[331649252,1720605040175,-1260.80582259,0.00023531,2]
[331649253,1720605040184,-166.666666,0.00023969,2]
[331649254,1720605040194,-166.666666,0.00024482,2]
[331649255,1720605040203,-753.76275399,0.00024867,2]
[331649256,1720605040212,-378.78,0.00025481,3]
[331649257,1720605040222,-5302.67,0.00025481,3]
[331649258,1720605040233,-4418.89,0.00025481,3]
[331649259,1720605040243,-3682.41,0.00025481,3]
[331649260,1720605040253,-60391.2013293,0.00025491,3]
[331649261,1720605040263,-52142.01242753,0.00025501,2]
[331649262,1720605040273,-7458.94652043,0.0002649,2]
[331649263,1720605040282,-753.76275399,0.0002689,2]
[331649264,1720605040292,-12018.45077229,0.0002699,5]
[331649265,1720605040302,-60391.2013293,0.0002699,3]
[331649266,1720605040311,-18957.9585867,0.00027,4]
[331649267,1720605040321,-526.518708,0.00027195,2]
[331649268,1720605040330,-500.0,0.00027397,2]
[331649269,1720605040339,-500.0,0.00027397,2]
[331649270,1720605040348,-500.0,0.00027397,2]
[331649271,1720605040357,-647.86576007,0.00027397,2]
[331649272,1720605040367,-60391.2013293,0.0002749,3]
[331649274,1720605040376,-43664.05653873,0.000275,2]
[331649275,1720605040385,-1343.96727085,0.000279,2]
[331649277,1720605040394,-25164.56658619,0.0002799,2]
[331649279,1720605040404,-503.90846633,0.00028,2]
[331649281,1720605040414,-798.78016452,0.000285,2]
[331649283,1720605040423,-500.0,0.00028749,2]
[331649285,1720605040433,-440.05599607,0.00028749,2]
[331649287,1720605040443,-500.0,0.00028749,2]
[331649289,1720605040452,-285.55627452,0.00028749,2]
[331649291,1720605040462,-500.0,0.00028749,2]
[331649293,1720605040471,-500.0,0.00028749,2]
[331649295,1720605040482,-500.0,0.00028749,2]
[331649297,1720605040492,-392.94888761,0.00028749,2]
[331649299,1720605040502,-500.0,0.00028749,2]
[331649301,1720605040512,-500.0,0.00028749,2]
[331649303,1720605040521,-300.0,0.00028749,2]
[331649305,1720605040534,-60391.2013293,0.0002875,3]
[331649307,1720605040544,-24110.91159645,0.0002876,5]
[331649310,1720605040557,-32846.92538416,0.0002876,3]
[331649555,1720605042986,-418.49506118,0.00027093,2]
[331649556,1720605043114,-329.45149945,0.00027093,2]
[331649855,1720605046125,-512.85926196,0.00027093,2]
[331649857,1720605046137,-5647.14073805,0.0002876,3]
[331653807,1720606232167,-182.446809,0.00021096,2]
[331653808,1720606232177,-473.866837,0.00021096,2]
[331653809,1720606232186,-1731.8114006,0.00023922,2]
[331653810,1720606232195,-116.91830576,0.00023968,2]
[331653834,1720606238050,-285.69121963,0.00023968,2]
[331653836,1720606238060,-300.0,0.00024361,2]
[331653838,1720606238070,-24890.0,0.00024362,2]
[331653840,1720606238081,-250.0,0.00024419,2]
[331653842,1720606238091,-166.666666,0.00025131,2]
[331653843,1720606238100,-1097.8290482,0.00025391,2]
[331653845,1720606238111,-3374.72,0.00025481,3]
[331653847,1720606238122,-5836.65,0.00025491,3]
[331653849,1720606238133,-4863.87,0.00025491,3]
[331653851,1720606238144,-4053.23,0.00025491,3]
[331653853,1720606238155,-54228.6483735,0.00025491,3]
[331653855,1720606238164,-100080.63805668,0.00025501,2]
[331653857,1720606238174,-166.666666,0.00025816,2]
[331653859,1720606238183,-150.0,0.000265,2]
[331653861,1720606238192,-166.666666,0.00026501,2]
[331653863,1720606238201,-166.666666,0.00027187,2]
[331653865,1720606238212,-473.866837,0.00027195,2]
[331653867,1720606238223,-238.65175112,0.00027397,2]
[331653869,1720606238234,-166.666666,0.00027872,2]
[331653871,1720606238244,-6009.22538614,0.00027989,5]
[331653873,1720606238255,-54228.6483735,0.0002799,3]
[331653875,1720606238265,-1065.81451026,0.00027999,2]
[331653878,1720606238275,-2500.0,0.00028,2]
[331653881,1720606238285,-1097.82904817,0.00028178,2]
[331653883,1720606238295,-366.6405652,0.00028279,2]
[331653885,1720606238306,-5292.88975486,0.00028371,2]
[331653887,1720606238316,-166.666666,0.00028557,2]
[331653889,1720606238326,-500.0,0.00028759,2]
[331653891,1720606238336,-163.74496817,0.00028759,2]
[331653893,1720606238346,-308.03919725,0.00028759,2]
[331653895,1720606238355,-500.0,0.00028759,2]
[331653897,1720606238365,-325.06422132,0.00028759,2]
[331653899,1720606238374,-399.88939217,0.00028759,2]
[331653901,1720606238384,-500.0,0.00028759,2]
[331653903,1720606238393,-500.0,0.00028759,2]
[331653905,1720606238404,-500.0,0.00028759,2]
[331653907,1720606238414,-500.0,0.00028759,2]
[331653909,1720606238425,-54228.6483735,0.0002876,3]
[331653911,1720606238435,-189.26423783,0.0002876,2]
[331653913,1720606238445,-6865.55878528,0.0002876,2]
[331653915,1720606238455,-2000.0,0.0002876,2]
[331653917,1720606238465,-428.33485551,0.0002876,2]
[331653919,1720606238475,-763.93203298,0.0002876,2]
[331653921,1720606238486,-225.75818488,0.0002876,2]
[331653923,1720606238496,-518.07029447,0.0002876,30]
[331653925,1720606238506,-162685.94512,0.0002876,3]
[331653927,1720606238515,-161532.22364596,0.0002877,2]
[331653975,1720606240270,-28460.91710969,0.0002877,2]
[331653977,1720606240280,-151.0,0.0002877,7]
[331653979,1720606240289,-849.45020334,0.00029,2]
[331653981,1720606240299,-150.0,0.00029759,2]
[331653983,1720606240308,-4150.91754185,0.00029765,2]
[331653985,1720606240318,-30000.0,0.00029793,2]
[331653987,1720606240327,-248.95340007,0.000298,120]
[331653989,1720606240337,-880.25528941,0.00029904,2]
[331653990,1720606240346,-880.25528941,0.00029904,2]
[331653991,1720606240357,-170.47875529,0.0003,4]
[331653992,1720606240367,-753.06028908,0.0003,2]
[331653993,1720606240376,-250.0,0.0003,120]
[331653994,1720606240386,-202.0,0.0003,2]
[331653995,1720606240395,-1097.82904817,0.00030965,2]
[331653996,1720606240405,-2500.0,0.00031,2]
[331653997,1720606240414,-500.38242698,0.00032,30]
[331653998,1720606240424,-250.0,0.00032,120]
[331653999,1720606240434,-500.0,0.00033,3]
[331654000,1720606240443,-473.866837,0.00033295,2]
[331654001,1720606240453,-160.0,0.00033443,3]
[331654002,1720606240462,-1097.82904817,0.00033752,2]
[331654003,1720606240472,-44921.84307145,0.000338,2]
[331657268,1720607438633,-203.06915978,0.00020996,2]
[331657270,1720607438644,-508.955638,0.00021096,2]
[331657272,1720607438655,-1000.0,0.00025,9]
[331657274,1720607438665,-52142.01242753,0.00025501,2]
[331657276,1720607438675,-1133.1971952,0.00026269,2]
[331657278,1720607438685,-166.666666,0.00026369,2]
[331657280,1720607438695,-162.033235,0.00026424,2]
[331657281,1720607438705,-166.666666,0.00027088,2]
[331657283,1720607438716,-508.955638,0.00027195,2]
[331657285,1720607438726,-166.666666,0.00027807,2]
[331657287,1720607438736,-219.1,0.00028218,2]
[331657289,1720607438745,-166.666666,0.00028526,2]
[331657290,1720607438756,-1133.19719518,0.00028931,2]
[331657292,1720607438766,-219.1,0.00029149,3]
[331657294,1720607438777,-166.666666,0.00029245,2]
[331657296,1720607438787,-30000.0,0.00029793,2]
[331657298,1720607438796,-283.43817222,0.00029813,2]
[331657300,1720607438807,-599.14160025,0.00029861,2]
[331657302,1720607438818,-1500.0,0.00029904,2]
[331657304,1720607438829,-1500.0,0.00029904,2]
[331657306,1720607438838,-166.666666,0.00029964,2]
[331657308,1720607438848,-6986.6266304,0.00029999,2]
[331657310,1720607438858,-170.47875529,0.0003,4]
[331657312,1720607438868,-643.66349447,0.0003,4]
[331657313,1720607438877,-168.0,0.0003,2]
[331657315,1720607438888,-207.0,0.0003,2]
[331657317,1720607438898,-219.1,0.00030081,3]
[331657319,1720607438908,-168.0,0.00030411,2]
[331657321,1720607438918,-2500.0,0.00031,2]
[331657323,1720607438928,-219.1,0.00031013,4]
[331657325,1720607438938,-471.68236775,0.00031251,4]
[331657327,1720607438948,-1133.19719518,0.00031592,2]
[331657329,1720607438958,-168.0,0.00031644,2]
[331657331,1720607438970,-219.1,0.00031944,4]
[331657333,1720607438980,-1000.0,0.00032,32]
[331657335,1720607438990,-6031.7,0.00032856,3]
[331657336,1720607439000,-7238.04,0.00032866,3]
[331657338,1720607439011,-1283.65344259,0.00032872,2]
[331657340,1720607439020,-219.1,0.00032876,5]
[331657342,1720607439031,-160.0,0.00032882,3]
[331657344,1720607439040,-46024.7748562,0.00032939,4]
[331657346,1720607439050,-200.0,0.00032971,2]
[331657348,1720607439060,-500.0,0.00032989,7]
[331657350,1720607439070,-224.23404125,0.00032989,7]
[331657352,1720607439080,-500.0,0.00032989,7]
[331657354,1720607439090,-500.0,0.00032989,7]
[331657355,1720607439100,-500.0,0.00032989,7]
[331657357,1720607439110,-500.0,0.00032989,7]
[331657359,1720607439120,-500.0,0.00032989,7]
[331657361,1720607439131,-500.0,0.00032989,7]
[331657363,1720607439140,-500.0,0.00032989,7]
[331657365,1720607439150,-3004.61269307,0.0003299,5]
[331657367,1720607439162,-500.0,0.0003299,7]
[331657369,1720607439172,-500.0,0.0003299,7]
[331657371,1720607439182,-500.0,0.0003299,7]
[331657373,1720607439192,-500.0,0.0003299,7]
[331657375,1720607439201,-500.0,0.0003299,7]
[331657377,1720607439212,-177.655455,0.0003299,7]
[331657379,1720607439222,-92049.5497125,0.0003299,4]
[331657381,1720607439231,-292.55335768,0.00033,7]
[331657383,1720607439242,-101444.20789801,0.00033,2]
[331657384,1720607439252,-5000.0,0.00033,33]
[331657386,1720607439262,-1283.65344258,0.00033028,2]
[331657388,1720607439273,-1283.65344258,0.00033185,2]
[331657390,1720607439283,-168.0,0.00033226,2]
[331657392,1720607439293,-252.3073383,0.00033292,4]
[331657394,1720607439304,-256.84783111,0.00033294,2]
[331657396,1720607439314,-508.955638,0.00033295,2]
[331657398,1720607439325,-46024.7748562,0.00033323,4]
[331657400,1720607439335,-42888.37692498,0.00033333,2]
[331657402,1720607439346,-155.36732,0.00033333,7]
[331657403,1720607439355,-633.374196,0.00033333,7]
[331657405,1720607439368,-633.374196,0.00033333,7]
[331657407,1720607439380,-151.0,0.00033333,7]
[331657409,1720607439390,-1283.65344258,0.00033341,2]
[331657411,1720607439401,-5292.88975486,0.00033484,2]
[331657412,1720607439411,-215.62743808,0.00033579,7]
[331657413,1720607439421,-500.0,0.00033579,7]
[331657414,1720607439432,-500.0,0.00033579,7]
[331657415,1720607439442,-365.58945687,0.00033579,7]
[331657416,1720607439452,-500.0,0.00033579,7]
[331657417,1720607439464,-500.0,0.00033579,7]
[331657418,1720607439475,-277.54495493,0.00033579,7]
[331657419,1720607439486,-500.0,0.00033579,7]
[331657420,1720607439497,-267.88466628,0.00033579,7]
[331657421,1720607439507,-633.374196,0.0003358,7]
[331657422,1720607439518,-633.374196,0.0003358,7]
[331657423,1720607439528,-151.0,0.0003358,7]
[331657424,1720607439538,-138074.324569,0.0003358,4]
[331657425,1720607439548,-160.0,0.00033583,4]
[331657426,1720607439559,-212.545102,0.0003359,7]
[331657427,1720607439568,-395.335471,0.0003359,2]
[331657428,1720607439579,-395.335471,0.0003359,2]
[331657429,1720607439590,-151.0,0.0003359,7]
[331657430,1720607439600,-151.0,0.0003359,7]
[331657431,1720607439610,-151.0,0.0003359,7]
[331657432,1720607439621,-228.82113,0.0003359,7]
[331657433,1720607439631,-228.82113,0.0003359,7]
[331657434,1720607439641,-1331.798164,0.0003359,7]
[331657435,1720607439651,-1331.798164,0.0003359,7]
[331657436,1720607439661,-185.065834,0.0003359,7]
[331657437,1720607439671,-185.065834,0.0003359,7]
[331657438,1720607439820,-349.822759,0.0003359,7]
[331657439,1720607439831,-349.822759,0.0003359,7]
[331657440,1720607439842,-167.758636,0.0003359,7]
[331657441,1720607439852,-167.758636,0.0003359,7]
[331657442,1720607439862,-257.028744,0.0003359,7]
[331657443,1720607439872,-257.028744,0.0003359,7]
[331657444,1720607439883,-239.620888,0.0003359,7]
[331657445,1720607439894,-239.620888,0.0003359,7]
[331657446,1720607439904,-398.405799,0.0003359,7]
[331657447,1720607439915,-398.405799,0.0003359,7]
[331657448,1720607439925,-167.650171,0.0003359,7]
[331657449,1720607439935,-3212.639602,0.0003359,7]
[331657450,1720607439945,-3212.639602,0.0003359,7]
[331657451,1720607439955,-633.374196,0.0003359,7]
[331657453,1720607439968,-633.374196,0.0003359,7]
[331657455,1720607439979,-151.0,0.0003359,7]
[331657456,1720607439993,-88888.0,0.0003359,5]
[331657457,1720607440004,-1134.78858535,0.00033597,4]
[331657458,1720607440015,-366.6405652,0.00033621,2]
[331657459,1720607440025,-150.0,0.00033689,2]
[331657461,1720607440036,-151.0,0.0003369,7]
[331657462,1720607440047,-395.335471,0.0003369,2]
[331657463,1720607440058,-395.335471,0.0003369,2]
[331657464,1720607440069,-151.0,0.0003369,7]
[331657465,1720607440080,-151.0,0.0003369,7]
[331657466,1720607440090,-151.0,0.0003369,7]
[331657467,1720607440101,-228.82113,0.0003369,7]
[331657468,1720607440112,-228.82113,0.0003369,7]
[331657469,1720607440122,-1331.798164,0.0003369,7]
[331657470,1720607440132,-1331.798164,0.0003369,7]
[331657471,1720607440142,-185.065834,0.0003369,7]
[331657472,1720607440152,-185.065834,0.0003369,7]
[331657473,1720607440163,-349.822759,0.0003369,7]
[331657474,1720607440173,-349.822759,0.0003369,7]
[331657475,1720607440182,-167.758636,0.0003369,7]
[331657476,1720607440192,-167.758636,0.0003369,7]
[331657477,1720607440202,-257.028744,0.0003369,7]
[331657478,1720607440212,-257.028744,0.0003369,7]
[331657479,1720607440224,-239.620888,0.0003369,7]
[331657480,1720607440234,-239.620888,0.0003369,7]
[331657481,1720607440244,-398.405799,0.0003369,7]
[331657482,1720607440254,-398.405799,0.0003369,7]
[331657483,1720607440264,-3212.639602,0.0003369,7]
[331657484,1720607440274,-3212.639602,0.0003369,7]
[331657486,1720607440285,-194.626993,0.000337,7]
[331657487,1720607440295,-151.0,0.000337,7]
[331657488,1720607440304,-151.0,0.000337,7]
[331657490,1720607440313,-160.057167,0.000337,7]
[331657492,1720607440322,-160.057167,0.000337,7]
[331657494,1720607440332,-199.127598,0.00033789,7]
[331657495,1720607440342,-199.127598,0.00033789,7]
[331657497,1720607440351,-155.34845,0.00033789,7]
[331657499,1720607440361,-159.012451,0.0003379,7]
[331657501,1720607440372,-151.0,0.0003379,7]
[331657503,1720607440382,-1120.00475,0.0003379,7]
[331657505,1720607440392,-1120.00475,0.0003379,7]
[331657507,1720607440401,-199.127598,0.0003379,7]
[331657509,1720607440411,-199.127598,0.0003379,7]
[331657511,1720607440421,-151.0,0.0003379,7]
[331657513,1720607440430,-151.0,0.0003379,7]
[331657515,1720607440440,-160.057167,0.0003379,7]
[331657517,1720607440449,-160.057167,0.0003379,7]
[331657519,1720607440458,-395.335471,0.0003379,2]
[331657521,1720607440471,-395.335471,0.0003379,2]
[331657523,1720607440481,-151.0,0.0003379,7]
[331657525,1720607440490,-151.0,0.0003379,7]
[331657527,1720607440500,-151.0,0.0003379,7]
[331657529,1720607440510,-228.82113,0.0003379,7]
[331657531,1720607440520,-228.82113,0.0003379,7]
[331657533,1720607440529,-1331.798164,0.0003379,7]
[331657535,1720607440539,-1331.798164,0.0003379,7]
[331657537,1720607440550,-185.065834,0.0003379,7]
[331657539,1720607440560,-185.065834,0.0003379,7]
[331657541,1720607440570,-349.822759,0.0003379,7]
[331657543,1720607440580,-349.822759,0.0003379,7]
[331657545,1720607440590,-167.758636,0.0003379,7]
[331657547,1720607440600,-167.758636,0.0003379,7]
[331657549,1720607440610,-257.028744,0.0003379,7]
[331657551,1720607440620,-257.028744,0.0003379,7]
[331657553,1720607440630,-239.620888,0.0003379,7]
[331657555,1720607440640,-239.620888,0.0003379,7]
[331657557,1720607440650,-398.405799,0.0003379,7]
[331657559,1720607440660,-398.405799,0.0003379,7]
[331657561,1720607440670,-3212.639602,0.0003379,7]
[331657563,1720607440680,-3212.639602,0.0003379,7]
[331657565,1720607440689,-24110.91159645,0.000338,5]
[331657567,1720607440699,-232888.96646258,0.000338,2]
[331657569,1720607440714,-5852.79648055,0.000338,2]
[331657572,1720607441122,-1000.0,0.00029,29]
[331657573,1720607441133,-153.152185,0.00033333,7]
[331657574,1720607441143,-1283.65344258,0.00033497,2]
[331657576,1720607441152,-169082.70666791,0.000338,2]
[331657578,1720607441161,-155210.99692966,0.000338,3]
[331657580,1720607441173,-38856.35525364,0.000338,3]
[331660095,1720608632618,-1000.0,0.00016255,2]
[331660096,1720608633358,-484.83082982,0.00016255,2]
[331660626,1720608639261,-8137.14409093,0.00016255,2]
[331660628,1720608639272,-283.43817222,0.00021095,2]
[331660630,1720608639283,-283.43817222,0.00021095,2]
[331660632,1720608639293,-432.612292,0.00021096,2]
[331660634,1720608639303,-1000.0,0.00024,5]
[331660636,1720608639313,-708.24824704,0.0002541,2]
[331660638,1720608639323,-251.25425133,0.0002541,2]
[331660640,1720608639332,-52142.01242753,0.00025501,2]
[331660657,1720608639491,-6266.38582075,0.00025501,2]
[331660659,1720608639502,-182.225564,0.0002551,2]
[331660661,1720608639513,-500.0,0.00026,3]
[331660663,1720608639523,-1636.25072622,0.00026574,2]
[331660665,1720608639535,-251.25425133,0.0002665,2]
[331660667,1720608639545,-182.225564,0.00026669,2]
[331660669,1720608639555,-1065.81451026,0.00026848,2]
[331660671,1720608639566,-500.0,0.00027,3]
[331660673,1720608639576,-187.7887475,0.00027194,2]
[331660675,1720608639587,-432.612292,0.00027195,2]
[331660677,1720608639597,-8583.22,0.0002748,3]
[331660679,1720608639607,-7152.68,0.0002748,3]
[331660681,1720608639616,-5960.57,0.0002748,3]
[331660683,1720608639628,-49762.6562464,0.0002749,3]
[331660685,1720608639637,-500.0,0.00027499,2]
[331660686,1720608639648,-500.0,0.00027499,2]
[331660688,1720608639658,-500.0,0.00027499,2]
[331660690,1720608639667,-433.07918406,0.00027499,2]
[331660692,1720608639676,-43664.05653873,0.000275,2]
[331660694,1720608639686,-182.225564,0.00027828,2]
[331660696,1720608639695,-256.73068854,0.0002789,2]
[331660698,1720608639705,-251.25425133,0.0002789,2]
[331660699,1720608639714,-1343.96727085,0.000279,2]
[331660701,1720608639723,-9013.83807922,0.0002794,5]
[331660703,1720608639733,-49762.6562464,0.0002794,3]
[331660705,1720608639743,-25164.56658619,0.0002799,2]
[331660707,1720608639752,-500.0,0.00028,3]
[331660709,1720608639762,-708.24824698,0.00028194,2]
[331660711,1720608639771,-159.8,0.00028304,2]
[331660713,1720608639780,-798.78016452,0.000285,2]
[331660715,1720608639790,-200.0,0.00028733,2]
[331660717,1720608639801,-49762.6562464,0.0002875,3]
[331660719,1720608639810,-49762.6562464,0.0002876,3]
[331660721,1720608639819,-28460.91710969,0.0002877,2]
[331660723,1720608639829,-182.225564,0.00028987,2]
[331660725,1720608639838,-1000.0,0.00029,9]
[331660727,1720608639847,-849.45020334,0.00029,2]
[331660729,1720608639856,-500.0,0.00029,3]
[331660731,1720608639865,-159.8,0.00029228,3]
[331660733,1720608639875,-256.73068851,0.00029343,2]
[331660735,1720608639885,-49762.6562464,0.00029745,3]
[331660737,1720608639894,-515.58945687,0.00029754,2]
[331660739,1720608639904,-347.6442369,0.00029754,2]
[331660741,1720608639913,-500.0,0.00029754,2]
[331660743,1720608639922,-500.0,0.00029754,2]
[331660745,1720608639931,-500.0,0.00029754,2]
[331660747,1720608639940,-500.0,0.00029754,2]
[331660748,1720608639950,-545.42962121,0.00029754,2]
[331660750,1720608639959,-500.0,0.00029754,2]
[331660752,1720608639968,-49762.6562464,0.00029755,3]
[331660754,1720608639977,-91095.96934052,0.00029765,2]